fUSD/lending_fUSD_20250111
["ID","MTS","AMOUNT","RATE_DAILY","PERIOD"]
[348561780,1736620241748,-165.04413965,0.00010265,2]
[348561781,1736620241758,-500.0,0.00010265,2]
[348561782,1736620241768,-500.0,0.00010265,2]
[348561783,1736620241777,-500.0,0.00010265,2]
[348561784,1736620241787,-500.0,0.00010265,2]
[348561785,1736620241797,-500.0,0.00010265,2]
[348561786,1736620241807,-500.0,0.00010265,2]
[348561787,1736620241816,-500.0,0.00010265,2]
[348561788,1736620241826,-500.0,0.00010265,2]
[348561789,1736620241836,-500.0,0.00010265,2]
[348561790,1736620241845,-500.0,0.00010265,2]
[348561791,1736620241855,-500.0,0.00010265,2]
[348561792,1736620241865,-500.0,0.00010265,2]
[348561793,1736620241874,-500.0,0.00010265,2]
[348561794,1736620241884,-500.0,0.00010265,2]
[348561795,1736620241894,-500.0,0.00010265,2]
[348561796,1736620241903,-500.0,0.00010265,2]
[348561797,1736620241914,-500.0,0.00010265,2]
[348561798,1736620241924,-500.0,0.00010265,2]
[348561799,1736620241933,-500.0,0.00010265,2]
[348561800,1736620241943,-500.0,0.00010265,2]
[348561801,1736620241952,-500.0,0.00010265,2]
[348561802,1736620241961,-500.0,0.00010265,2]
[348561803,1736620241971,-500.0,0.00010265,2]
[348561804,1736620241981,-314.53818646,0.00010265,2]
[348561805,1736620241990,-500.0,0.00010265,2]
[348561806,1736620242000,-500.0,0.00010265,2]
[348561807,1736620242009,-500.0,0.00010265,2]
[348561808,1736620242019,-500.0,0.00010265,2]
[348561809,1736620242030,-502.42159726,0.00010265,2]
[348561810,1736620242039,-500.0,0.00010265,2]
[348561811,1736620242049,-500.0,0.00010265,2]
[348561812,1736620242058,-500.0,0.00010265,2]
[348561813,1736620242067,-500.0,0.00010265,2]
[348561814,1736620242076,-500.0,0.00010265,2]
[348561815,1736620242086,-500.0,0.00010265,2]
[348561816,1736620242096,-500.0,0.00010265,2]
[348561817,1736620242105,-500.0,0.00010265,2]
[348561818,1736620242115,-500.0,0.00010265,2]
[348561819,1736620242124,-500.0,0.00010265,2]
[348561820,1736620242133,-500.0,0.00010265,2]
[348561821,1736620242142,-500.0,0.00010265,2]
[348561822,1736620242154,-500.0,0.00010265,2]
[348561823,1736620242164,-500.0,0.00010265,2]
[348561824,1736620242173,-500.0,0.00010265,2]
[348561825,1736620242183,-500.0,0.00010265,2]
[348561826,1736620242193,-500.0,0.00010265,2]
[348561827,1736620242202,-500.0,0.00010265,2]
[348561828,1736620242211,-500.0,0.00010265,2]
[348561829,1736620242221,-500.0,0.00010265,2]
[348561830,1736620242235,-500.0,0.00010265,2]
[348561831,1736620242244,-500.0,0.00010265,2]
[348561832,1736620242254,-500.0,0.00010265,2]
[348561833,1736620242263,-500.0,0.00010265,2]
[348561834,1736620242274,-500.0,0.00010265,2]
[348561835,1736620242284,-500.0,0.00010265,2]
[348561836,1736620242293,-500.0,0.00010265,2]
[348561837,1736620242303,-500.0,0.00010265,2]
[348561838,1736620242312,-500.0,0.00010265,2]
[348561839,1736620242323,-500.0,0.00010265,2]
[348561840,1736620242332,-500.0,0.00010265,2]
[348561841,1736620242342,-500.0,0.00010265,2]
[348561842,1736620242351,-284.34,0.00010265,2]
[348561843,1736620242361,-500.0,0.00010265,2]
[348561844,1736620242370,-500.0,0.00010265,2]
[348561845,1736620242380,-500.0,0.00010265,2]
[348561846,1736620242390,-501.56,0.00010265,2]
[348561847,1736620242401,-500.0,0.00010265,2]
[348561848,1736620242411,-500.0,0.00010265,2]
[348561849,1736620242420,-500.0,0.00010265,2]
[348561850,1736620242429,-500.0,0.00010265,2]
[348561851,1736620242439,-500.0,0.00010265,2]
[348561852,1736620242448,-500.0,0.00010265,2]
[348561853,1736620242458,-500.0,0.00010265,2]
[348561854,1736620242467,-500.0,0.00010265,2]
[348561855,1736620242477,-500.0,0.00010265,2]
[348561856,1736620242487,-500.0,0.00010265,2]
[348561857,1736620242497,-500.0,0.00010265,2]
[348561858,1736620242506,-500.0,0.00010265,2]
[348561859,1736620242516,-500.0,0.00010265,2]
[348561860,1736620242526,-500.0,0.00010265,2]
[348561861,1736620242535,-500.0,0.00010265,2]
[348561862,1736620242545,-500.0,0.00010266,2]
[348561863,1736620242554,-500.0,0.00010266,2]
[348561864,1736620242565,-500.0,0.00010266,2]
[348561865,1736620242575,-500.0,0.00010266,2]
[348561866,1736620242585,-500.0,0.00010266,2]
[348561867,1736620242594,-500.0,0.00010266,2]
[348561868,1736620242604,-297.04014465,0.00010266,2]
[348561869,1736620242622,-202.95985535,0.00010266,2]
[348561870,1736620242632,-500.0,0.00010266,2]
[348561871,1736620242641,-500.0,0.00010266,2]
[348561872,1736620242652,-500.0,0.00010266,2]
[348561873,1736620242661,-500.0,0.00010266,2]
[348561874,1736620242671,-500.0,0.00010266,2]
[348561875,1736620242681,-500.0,0.00010266,2]
[348561876,1736620242690,-500.0,0.00010266,2]
[348561877,1736620242700,-500.0,0.00010266,2]
[348561878,1736620242710,-500.0,0.00010266,2]
[348561879,1736620242719,-505.13729647,0.00010266,2]
[348561880,1736620242729,-500.0,0.00010266,2]
[348561881,1736620242738,-500.0,0.00010266,2]
[348561882,1736620242748,-500.0,0.00010266,2]
[348561883,1736620242757,-500.0,0.00010266,2]
[348561884,1736620242767,-500.0,0.00010266,2]
[348561885,1736620242776,-500.0,0.00010266,2]
[348561886,1736620242786,-500.0,0.00010266,2]
[348561887,1736620242795,-500.0,0.00010266,2]
[348561888,1736620242805,-500.0,0.00010266,2]
[348561889,1736620242814,-500.0,0.00010266,2]
[348561890,1736620242823,-500.0,0.00010266,2]
[348561891,1736620242833,-500.0,0.00010266,2]
[348561892,1736620242842,-500.0,0.00010266,2]
[348561893,1736620242852,-500.0,0.00010266,2]
[348561894,1736620242861,-500.0,0.00010266,2]
[348561895,1736620242871,-500.0,0.00010266,2]
[348561896,1736620242880,-500.0,0.00010266,2]
[348561897,1736620242889,-435.27620533,0.00010266,2]
[348561898,1736620242900,-500.0,0.00010266,2]
[348561900,1736620242911,-500.0,0.00010266,2]
[348561902,1736620242921,-500.0,0.00010266,2]
[348561903,1736620242930,-622.95864937,0.00010266,2]
[348561905,1736620242940,-500.0,0.00010266,2]
[348561907,1736620242949,-500.0,0.00010266,2]
[348561908,1736620242958,-166.1408192,0.00010266,2]
[348561909,1736620242968,-500.0,0.00010266,2]
[348561910,1736620242977,-500.0,0.00010266,2]
[348561911,1736620242987,-500.0,0.00010266,2]
[348561912,1736620242996,-500.0,0.00010266,2]
[348561913,1736620243006,-500.0,0.00010266,2]
[348561914,1736620243015,-500.0,0.00010266,2]
[348561915,1736620243025,-500.0,0.00010266,2]
[348561916,1736620243035,-500.0,0.00010266,2]
[348561917,1736620243220,-500.0,0.00010266,2]
[348561918,1736620243231,-500.0,0.00010266,2]
[348561919,1736620243240,-500.0,0.00010266,2]
[348561920,1736620243249,-500.0,0.00010266,2]
[348561921,1736620243259,-500.0,0.00010266,2]
[348561922,1736620243268,-500.0,0.00010266,2]
[348561923,1736620243277,-500.0,0.00010266,2]
[348561924,1736620243286,-500.0,0.00010266,2]
[348561925,1736620243295,-500.0,0.00010266,2]
[348561926,1736620243304,-500.0,0.00010266,2]
[348561927,1736620243313,-500.0,0.00010266,2]
[348561928,1736620243322,-500.0,0.00010266,2]
[348561929,1736620243331,-500.0,0.00010266,2]
[348561930,1736620243340,-500.0,0.00010266,2]
[348561931,1736620243349,-500.0,0.00010266,2]
[348561932,1736620243359,-440.84,0.00010266,2]
[348561933,1736620243368,-1284.37,0.00010266,2]
[348561934,1736620243377,-1781.7,0.00010266,2]
[348561935,1736620243386,-915.17,0.00010266,2]
[348561936,1736620243395,-897.57,0.00010266,2]
[348561937,1736620243406,-1017.32,0.00010267,2]
[348561938,1736620243415,-500.0,0.00010268,2]
[348561939,1736620243425,-500.0,0.00010268,2]
[348561940,1736620243435,-500.0,0.00010268,2]
[348561941,1736620243444,-921.38,0.00010268,2]
[348561942,1736620243453,-726.25,0.00010268,2]
[348561943,1736620243463,-1623.08,0.00010268,2]
[348561944,1736620243472,-527.84,0.00010268,2]
[348561945,1736620243481,-1062.89,0.00010268,2]
[348561946,1736620243490,-1566.04,0.00010268,2]
[348561947,1736620243499,-6943.01,0.00010268,2]
[348561948,1736620243509,-1272.85,0.00010268,2]
[348561950,1736620243518,-500.0,0.00010268,2]
[348561952,1736620243527,-523.34,0.00010268,2]
[348561953,1736620243536,-1589.16,0.00010268,2]
[348561954,1736620243545,-500.0,0.00010268,2]
[348561956,1736620243555,-500.0,0.00010268,2]
[348561957,1736620243565,-774.86,0.00010268,2]
[348561959,1736620243575,-1100.64,0.00010268,2]
[348561961,1736620243584,-500.0,0.00010268,2]
[348561963,1736620243594,-1000.0,0.00010268,2]
[348561965,1736620243604,-721.14,0.00010268,2]
[348561967,1736620243613,-500.0,0.00010268,2]
[348561968,1736620243623,-1579.79,0.00010268,2]
[348561969,1736620243632,-1314.67,0.00010268,2]
[348561970,1736620243642,-150.86195683,0.00010273,2]
[348561971,1736620243652,-159.8462734,0.00010273,2]
[348561972,1736620243661,-152.83857709,0.00010273,2]
[348561973,1736620243671,-159.01775468,0.00010273,2]
[348561974,1736620243681,-276.18961175,0.00010273,2]
[348561975,1736620243692,-161.74771247,0.00010273,2]
[348561976,1736620243701,-500.0,0.00010273,2]
[348561977,1736620243711,-1000.0,0.00010275,2]
[348561978,1736620243720,-9682.4445,0.00010341,2]
[348561979,1736620243731,-208.76349431,0.00010374,2]
[348561980,1736620243740,-606.19,0.00010417,2]
[348561982,1736620243749,-966.28,0.00010428,2]
[348561983,1736620243759,-960.36,0.00010438,2]
[348561984,1736620243768,-696.05,0.00010438,2]
[348561985,1736620243778,-500.0,0.00010438,2]
[348561986,1736620243787,-1667.23,0.00010438,2]
[348561987,1736620243797,-500.0,0.00010438,2]
[348561988,1736620243806,-2283.16,0.00010438,2]
[348561989,1736620243815,-3818.4,0.00010438,2]
[348561990,1736620243824,-640.84,0.00010438,2]
[348561991,1736620243834,-2248.19,0.00010438,2]
[348561992,1736620243843,-500.0,0.00010438,2]
[348561993,1736620243854,-1177.39,0.00010438,2]
[348561994,1736620243863,-716.54,0.00010438,2]
[348561995,1736620243873,-2715.96,0.00010438,2]
[348561996,1736620243882,-500.0,0.00010438,2]
[348561997,1736620243891,-500.0,0.00010438,2]
[348561998,1736620243902,-500.0,0.00010438,2]
[348561999,1736620243911,-684.54,0.00010438,2]
[348562000,1736620243921,-500.0,0.00010438,2]
[348562001,1736620243930,-500.0,0.00010438,2]
[348562002,1736620243939,-500.0,0.00010438,2]
[348562003,1736620243948,-761.21,0.00010438,2]
[348562004,1736620243960,-500.0,0.00010438,2]
[348562005,1736620243969,-500.0,0.00010438,2]
[348562006,1736620243979,-500.0,0.00010438,2]
[348562007,1736620243989,-500.0,0.00010438,2]
[348562008,1736620243998,-500.0,0.00010439,2]
[348562009,1736620244008,-500.0,0.00010439,2]
[348562010,1736620244018,-500.0,0.00010439,2]
[348562011,1736620244028,-500.0,0.00010439,2]
[348562012,1736620244037,-500.0,0.00010439,2]
[348562013,1736620244046,-500.0,0.00010439,2]
[348562014,1736620244056,-500.0,0.00010439,2]
[348562015,1736620244065,-672.05,0.00010439,2]
[348562017,1736620244074,-500.0,0.00010439,2]
[348562018,1736620244085,-500.0,0.00010439,2]
[348562019,1736620244094,-500.0,0.00010439,2]
[348562020,1736620244103,-503.38772586,0.00010439,2]
[348562021,1736620244115,-434.88753388,0.00010439,2]
[348562022,1736620244124,-500.0,0.00010439,2]
[348562023,1736620244133,-500.0,0.00010439,2]
[348562024,1736620244143,-500.0,0.00010439,2]
[348562025,1736620244152,-500.0,0.00010439,2]
[348562026,1736620244161,-500.0,0.00010439,2]
[348562027,1736620244171,-500.0,0.00010439,2]
[348562028,1736620244181,-500.0,0.00010439,2]
[348562029,1736620244191,-500.0,0.00010439,2]
[348562030,1736620244201,-500.0,0.00010439,2]
[348562031,1736620244210,-500.0,0.00010439,2]
[348562032,1736620244219,-500.0,0.00010439,2]
[348562033,1736620244230,-500.0,0.00010439,2]
[348562034,1736620244242,-557.51,0.00010439,2]
[348562035,1736620244251,-576.99,0.00010439,2]
[348562036,1736620244261,-500.0,0.00010439,2]
[348562037,1736620244271,-527.5,0.00010439,2]
[348562038,1736620244280,-500.0,0.00010439,2]
[348562039,1736620244289,-500.0,0.00010439,2]
[348562040,1736620244300,-500.0,0.00010439,2]
[348562041,1736620244313,-500.0,0.00010439,2]
[348562042,1736620244323,-500.0,0.00010439,2]
[348562043,1736620244332,-500.0,0.00010439,2]
[348562044,1736620244342,-500.0,0.00010439,2]
[348562045,1736620244352,-500.0,0.00010439,2]
[348562046,1736620244363,-500.0,0.00010439,2]
[348562047,1736620244372,-500.0,0.00010439,2]
[348562048,1736620244382,-500.0,0.00010439,2]
[348562049,1736620244391,-671.41,0.00010439,2]
[348562050,1736620244401,-500.0,0.00010439,2]
[348562051,1736620244411,-500.0,0.00010439,2]
[348562052,1736620244420,-500.0,0.00010439,2]
[348562053,1736620244430,-735.55,0.00010439,2]
[348562054,1736620244439,-500.0,0.00010439,2]
[348562055,1736620244448,-500.0,0.00010439,2]
[348562056,1736620244457,-614.43,0.00010439,2]
[348562057,1736620244467,-500.0,0.00010439,2]
[348562058,1736620244476,-500.0,0.00010439,2]
[348562059,1736620244485,-687.44,0.00010439,2]
[348562060,1736620244495,-500.0,0.00010439,2]
[348562061,1736620244504,-500.0,0.00010439,2]
[348562062,1736620244513,-500.0,0.00010439,2]
[348562063,1736620244522,-500.0,0.00010439,2]
[348562064,1736620244531,-500.0,0.00010439,2]
[348562065,1736620244540,-500.0,0.00010439,2]
[348562066,1736620244550,-500.0,0.00010439,2]
[348562067,1736620244559,-500.0,0.00010439,2]
[348562068,1736620244568,-733.21,0.00010439,2]
[348562069,1736620244577,-500.0,0.00010439,2]
[348562070,1736620244586,-500.0,0.00010439,2]
[348562071,1736620244595,-211.70980542,0.00010439,2]
[348562072,1736620244620,-288.29019458,0.00010439,2]
[348562073,1736620244630,-500.0,0.00010439,2]
[348562074,1736620244639,-500.0,0.00010439,2]
[348562075,1736620244648,-500.0,0.00010439,2]
[348562076,1736620244658,-100.08561994,0.00010439,2]
[348562077,1736620244669,-401.46878889,0.00010439,2]
[348562078,1736620244678,-318.53121111,0.00010439,2]
[348562079,1736620244702,-181.46878889,0.00010439,2]
[348562080,1736620244711,-138.78845999,0.00010439,2]
[348562081,1736620244722,-361.21154001,0.00010439,2]
[348562082,1736620244731,-500.0,0.00010439,2]
[348562083,1736620244740,-1217.93,0.00010439,2]
[348562084,1736620244749,-323.65431896,0.00010439,2]
[348562085,1736620244760,-176.34568104,0.00010439,2]
[348562086,1736620244770,-223.83839342,0.00010439,2]
[348562087,1736620244788,-276.16160658,0.00010439,2]
[348562088,1736620244797,-500.0,0.00010439,2]
[348562089,1736620244806,-500.0,0.00010439,2]
[348562090,1736620244815,-500.0,0.00010439,2]
[348562091,1736620244824,-500.0,0.00010439,2]
[348562092,1736620244833,-1733.16,0.00010439,2]
[348562093,1736620244843,-500.0,0.00010439,2]
[348562094,1736620244851,-500.0,0.00010439,2]
[348562095,1736620244861,-500.0,0.00010439,2]
[348562096,1736620244870,-500.0,0.00010439,2]
[348562097,1736620244879,-500.0,0.00010439,2]
[348562098,1736620244888,-813.83,0.00010439,2]
[348562099,1736620244897,-500.0,0.00010439,2]
[348562100,1736620244906,-500.0,0.00010439,2]
[348562101,1736620244916,-500.0,0.00010439,2]
[348562102,1736620244925,-954.12,0.00010439,2]
[348562103,1736620244934,-1008.81,0.00010439,2]
[348562104,1736620244943,-500.0,0.00010439,2]
[348562105,1736620244953,-500.0,0.00010439,2]
[348562106,1736620244962,-500.0,0.00010439,2]
[348562107,1736620244971,-500.0,0.00010439,2]
[348562108,1736620244980,-1782.58,0.00010439,2]
[348562109,1736620244988,-500.0,0.00010439,2]
[348562110,1736620244998,-930.82,0.00010439,2]
[348562111,1736620245007,-217.120428,0.00010439,2]
[348562112,1736620245016,-622.38,0.00010439,2]
[348562113,1736620245025,-522.79,0.00010439,2]
[348562114,1736620245034,-2493.03,0.00010439,2]
[348562115,1736620245043,-500.0,0.00010439,2]
[348562116,1736620245052,-500.0,0.00010439,2]
[348562117,1736620245061,-1215.65,0.00010439,2]
[348562118,1736620245070,-2849.11,0.00010439,2]
[348562119,1736620245079,-500.0,0.00010439,2]
[348562120,1736620245088,-186.267351,0.00010439,2]
[348562121,1736620245097,-1952.06,0.00010439,2]
[348562122,1736620245106,-5755.78,0.00010439,2]
[348562123,1736620245115,-500.0,0.00010439,2]
[348562124,1736620245124,-500.0,0.00010439,2]
[348562125,1736620245134,-1304.79,0.00010439,2]
[348562126,1736620245144,-500.0,0.00010439,2]
[348562127,1736620245157,-818.64,0.00010439,2]
[348562128,1736620245166,-587.15,0.00010439,2]
[348562129,1736620245175,-500.0,0.00010439,2]
[348562130,1736620245185,-500.0,0.00010439,2]
[348562131,1736620245194,-506.69,0.00010439,2]
[348562132,1736620245203,-1028.71,0.00010439,2]
[348562133,1736620245213,-500.0,0.00010439,2]
[348562134,1736620245224,-500.0,0.00010439,2]
[348562135,1736620245237,-500.0,0.00010439,2]
[348562136,1736620245247,-500.0,0.00010439,2]
[348562137,1736620245256,-3008.65,0.00010439,2]
[348562138,1736620245265,-500.0,0.00010439,2]
[348562139,1736620245275,-2806.70061442,0.00010439,2]
[348562140,1736620245298,-132.74938558,0.00010439,2]
[348562141,1736620245308,-500.0,0.00010439,2]
[348562142,1736620245317,-500.0,0.00010439,2]
[348562143,1736620245326,-500.0,0.00010439,2]
[348562144,1736620245335,-500.0,0.00010439,2]
[348562145,1736620245344,-584.79,0.00010439,2]
[348562146,1736620245354,-500.0,0.00010439,2]
[348562147,1736620245364,-500.0,0.00010439,2]
[348562148,1736620245373,-500.0,0.00010439,2]
[348562149,1736620245383,-2813.01,0.00010439,2]
[348562150,1736620245392,-500.0,0.00010439,2]
[348562151,1736620245407,-2066.76,0.00010439,2]
[348562152,1736620245417,-266.97361444,0.00010439,2]
[348562153,1736620245428,-233.02638556,0.00010439,2]
[348562154,1736620245438,-500.0,0.00010439,2]
[348562155,1736620245448,-1001.95,0.00010439,2]
[348562156,1736620245457,-55.80083595,0.00010439,2]
[348562157,1736620245468,-444.19916405,0.00010439,2]
[348562158,1736620245478,-500.0,0.00010439,2]
[348562159,1736620245488,-500.0,0.00010439,2]
[348562160,1736620245498,-3166.08,0.00010439,2]
[348562161,1736620245507,-500.0,0.00010439,2]
[348562162,1736620245516,-500.0,0.00010439,2]
[348562163,1736620245526,-500.0,0.00010439,2]
[348562164,1736620245536,-500.0,0.00010439,2]
[348562165,1736620245545,-500.0,0.00010439,2]
[348562166,1736620245555,-500.0,0.00010439,2]
[348562167,1736620245564,-2016.16,0.00010439,2]
[348562168,1736620245573,-500.0,0.00010439,2]
[348562169,1736620245583,-500.0,0.00010439,2]
[348562170,1736620245592,-1138.0,0.00010439,2]
[348562171,1736620245601,-500.0,0.00010439,2]
[348562172,1736620245611,-500.0,0.00010439,2]
[348562173,1736620245620,-500.0,0.00010439,2]
[348562174,1736620245630,-738.79,0.00010439,2]
[348562175,1736620245641,-500.0,0.0001044,2]
[348562176,1736620245652,-618.31,0.0001044,2]
[348562177,1736620245662,-500.0,0.0001044,2]
[348562178,1736620245671,-500.0,0.0001044,2]
[348562179,1736620245680,-500.0,0.0001044,2]
[348562180,1736620245690,-500.0,0.0001044,2]
[348562181,1736620245699,-500.0,0.0001044,2]
[348562182,1736620245709,-500.0,0.0001044,2]
[348562183,1736620245718,-500.0,0.0001044,2]
[348562184,1736620245728,-500.0,0.0001044,2]
[348562185,1736620245737,-433.24718112,0.0001044,2]
[348562186,1736620245747,-500.0,0.0001044,2]
[348562187,1736620245757,-500.0,0.0001044,2]
[348562188,1736620245766,-500.0,0.0001044,2]
[348562189,1736620245776,-500.0,0.0001044,2]
[348562190,1736620245785,-500.0,0.0001044,2]
[348562191,1736620245795,-500.0,0.0001044,2]
[348562192,1736620245804,-500.0,0.0001044,2]
[348562194,1736620245813,-500.0,0.0001044,2]
[348562195,1736620245823,-500.0,0.0001044,2]
[348562196,1736620245834,-500.0,0.0001044,2]
[348562197,1736620245843,-500.0,0.0001044,2]
[348562198,1736620245852,-500.0,0.0001044,2]
[348562199,1736620245861,-500.0,0.0001044,2]
[348562200,1736620245871,-500.0,0.0001044,2]
[348562201,1736620245880,-500.0,0.0001044,2]
[348562203,1736620245890,-500.0,0.0001044,2]
[348562205,1736620245901,-500.0,0.0001044,2]
[348562206,1736620245910,-500.0,0.0001044,2]
[348562207,1736620245920,-500.0,0.0001044,2]
[348562208,1736620245930,-500.0,0.0001044,2]
[348562209,1736620245939,-500.0,0.0001044,2]
[348562210,1736620245949,-500.0,0.0001044,2]
[348562211,1736620245958,-500.0,0.0001044,2]
[348562212,1736620245968,-500.0,0.0001044,2]
[348562213,1736620245978,-500.0,0.0001044,2]
[348562214,1736620245987,-500.0,0.0001044,2]
[348562216,1736620245997,-500.0,0.0001044,2]
[348562218,1736620246006,-500.0,0.0001044,2]
[348562220,1736620246015,-500.0,0.0001044,2]
[348562222,1736620246024,-500.0,0.0001044,2]
[348562224,1736620246034,-500.0,0.0001044,2]
[348562226,1736620246043,-500.0,0.0001044,2]
[348562228,1736620246052,-500.0,0.0001044,2]
[348562229,1736620246061,-500.0,0.0001044,2]
[348562230,1736620246071,-155.87,0.0001044,2]
[348562231,1736620246080,-500.0,0.0001044,2]
[348562233,1736620246089,-500.0,0.0001044,2]
[348562235,1736620246098,-500.0,0.0001044,2]
[348562237,1736620246107,-500.0,0.0001044,2]
[348562239,1736620246116,-500.0,0.0001044,2]
[348562242,1736620246125,-500.0,0.0001044,2]
[348562244,1736620246134,-500.0,0.0001044,2]
[348562247,1736620246143,-500.0,0.0001044,2]
[348562249,1736620246154,-500.0,0.0001044,2]
[348562251,1736620246163,-500.0,0.0001044,2]
[348562253,1736620246172,-500.0,0.0001044,2]
[348562255,1736620246181,-500.0,0.0001044,2]
[348562257,1736620246190,-500.0,0.0001044,2]
[348562259,1736620246199,-500.0,0.0001044,2]
[348562261,1736620246208,-500.0,0.0001044,2]
[348562262,1736620246218,-500.0,0.0001044,2]
[348562264,1736620246227,-500.0,0.0001044,2]
[348562266,1736620246239,-500.0,0.0001044,2]
[348562268,1736620246249,-500.0,0.0001044,2]
[348562270,1736620246258,-500.0,0.0001044,2]
[348562272,1736620246268,-500.0,0.0001044,2]
[348562274,1736620246278,-540.54,0.0001044,2]
[348562275,1736620246288,-612.39,0.0001044,2]
[348562276,1736620246297,-260.09926521,0.0001044,2]
[348562285,1736620247484,-500.0,0.00010164,2]
[348562286,1736620247495,-500.0,0.00010164,2]
[348562287,1736620247504,-500.0,0.00010164,2]
[348562288,1736620247514,-500.0,0.00010164,2]
[348562289,1736620247523,-338.73367396,0.00010165,2]
[348562290,1736620247532,-500.0,0.00010165,2]
[348562291,1736620247542,-500.0,0.00010265,2]
[348562292,1736620247551,-500.0,0.00010265,2]
[348562293,1736620247560,-500.0,0.00010265,2]
[348562294,1736620247569,-500.0,0.00010438,2]
[348562295,1736620247579,-500.0,0.00010438,2]
[348562296,1736620247588,-479.22632604,0.00010438,2]
[348562297,1736620247602,-20.77367396,0.00010438,2]
[348562298,1736620247611,-384.83333094,0.00010439,2]
[348562299,1736620247622,-115.16666906,0.00010439,2]
[348562300,1736620247631,-239.90073479,0.0001044,2]
[348562301,1736620247641,-500.0,0.0001044,2]
[348562302,1736620247651,-500.0,0.0001044,2]
[348562303,1736620247661,-500.0,0.0001044,2]
[348562304,1736620247670,-500.0,0.0001044,2]
[348562305,1736620247679,-500.0,0.0001044,2]
[348562306,1736620247688,-703.64,0.0001044,2]
[348562307,1736620247698,-500.0,0.0001044,2]
[348562308,1736620247708,-500.0,0.0001044,2]
[348562309,1736620247717,-500.0,0.0001044,2]
[348562310,1736620247726,-264.54,0.0001044,2]
[348562311,1736620247735,-500.0,0.0001044,2]
[348562312,1736620247744,-500.0,0.0001044,2]
[348562313,1736620247754,-500.0,0.0001044,2]
[348562314,1736620247763,-1024.51,0.0001044,2]
[348562315,1736620247772,-1100.94,0.00010441,2]
[348562316,1736620247781,-1523.13,0.00010441,2]
[348562317,1736620247791,-926.27,0.00010441,2]
[348562318,1736620247800,-825.0111175,0.00010441,2]
[348562319,1736620247811,-605.30966957,0.00010441,2]
[348562320,1736620247822,-273.34921293,0.00010441,2]
[348562321,1736620247831,-1794.24,0.00010441,2]
[348562322,1736620247842,-2156.82,0.00010441,2]
[348562323,1736620247851,-679.28913587,0.00010441,2]
[348562324,1736620247875,-501.49450951,0.00010165,2]
[348562325,1736620247885,-1141.11086413,0.00010441,2]
[348562326,1736620247894,-2988.31,0.00010441,2]
[348562327,1736620247905,-1199.45,0.00010441,2]
[348562328,1736620247915,-1212.35,0.00010441,2]
[348562329,1736620247925,-500.0,0.00010441,2]
[348562330,1736620247934,-944.58,0.00010441,2]
[348562331,1736620247943,-1372.48,0.00010441,2]
[348562332,1736620247953,-1189.63,0.00010441,2]
[348562333,1736620247962,-708.76,0.00010441,2]